[Event "Prague Festival-Futures 2022"]
[Site "Prague"]
[Date "2022.06.08"]
[Round "1.4"]
[White "Bokhnak, Timofey"]
[Black "Warchol, Kamil"]
[Result "0-1"]
[ECO "B22"]
[WhiteElo "2060"]
[BlackElo "2079"]
[Annotator "TA"]
[PlyCount "148"]
[EventDate "2022.06.07"]
[EventType "tourn"]
[EventCountry "CZE"]
[SourceTitle "playchess.com"]
[Source "ChessBase"]
[SourceQuality "1"]
[TimeControl "40/5400+30:1800+30"]

{[%evp 12,148,50,70,69,70,72,41,58,55,67,53,45,52,43,41,35,18,43,53,94,66,90,84,91,70,109,120,134,142,131,55,139,0,161,109,118,90,125,44,47,43,52,47,102,31,74,47,50,8,15,0,91,101,119,116,103,77,112,113,102,113,112,107,112,96,121,115,111,85,126,122,114,88,135,84,110,95,108,19,19,19,19,16,19,0,0,0,0,0,0,0,0,-2,10,0,0,-7,0,0,0,0,0,-116,-106,-177,-17,-22,0,0,0,-305,-291,-274,-274,-234,0,0,0,-273,-1652,-2091,-756,-1773,-737,-29978,-29979,-29979,-29980,-29993,-29994,-29994,0,-29979,0,-29994,-29995,-29995,-29996]} 1. e4 {[%emt 0:00:16]} c5 {[%emt 0:00:12][%cal Bc7c5,Bc5c4][%mdl 32]} 2. c3 {[%emt 0:00:28]} Nf6 {[%emt 0:00:26]} 3. e5 {[%emt 0:00:09]} Nd5 {[%emt 0:00:15]} 4. Bc4 {[%emt 0:00:08]} Nb6 {[%emt 0:04:31]} 5. Bb3 {[%emt 0:00:16]} e6 {[%emt 0:01:01][%cal Be7e6,Be6e5][%mdl 32]} 6. Nf3 {[%emt 0:01:49]} c4 {[%emt 0:10:58]} 7. Bc2 {[%emt 0:00:21]} d5 {[%emt 0:01:16] B22: Sicilian: 2 c3.} 8. exd6 {[%emt 0:04:29]} Bxd6 {[%emt 0:00:22]} 9. b3 {[%emt 0:01:01]} cxb3 {[%emt 0:03:23] White is slightly better.} 10. axb3 {[%emt 0:00:28]} e5 {[%emt 0:02:59]} 11. O-O {[%emt 0:07:40]} O-O {[%emt 0:27:03]} 12. Na3 {[%emt 0:30:33]} Nc6 {[%emt 0:09:19]} 13. d4 {[%emt 0:15:22]} exd4 {[%emt 0:09:35]} 14. Nb5 {[%emt 0:00:54] [#]} (14. Nxd4 {is more complex.} Re8 15. Nab5 Nxd4 16. Qxd4 Be5 17. Qxd8 Rxd8 18. Rxa7 Rxa7 19. Nxa7 Bxc3 20. Nxc8 Nxc8 21. Rd1) 14... Be7 $146 {[%emt 0:00:50]} ({Predecessor:} 14... Re8 15. Re1 Rxe1+ 16. Qxe1 Bf8 17. Nbxd4 Nxd4 18. Nxd4 g6 19. Qe4 Bg7 20. Be3 Nd5 21. Bd2 Nb4 22. Bd1 Nc6 23. Be3 Bd7 {0-1 (23) Dulik,J (2231)-Pijl,R (2017) IECG email 2000}) 15. Nfxd4 $40 {[%emt 0:05:42][%mdl 128] White attacks.} Nxd4 {[%emt 0:03:29]} 16. Nxd4 {[%emt 0:01:26]} Nd5 {[%emt 0:03:18]} 17. Qf3 {[%emt 0:01:40] Rd1 is the strong threat.} Nf6 {[%emt 0:01:00]} 18. Bg5 {[%emt 0:05:42]} h6 {[%emt 0:02:33]} 19. Bh4 {[%emt 0:01:10]} Qb6 {[%emt 0:03:19]} 20. Rfe1 {[%emt 0:01:36]} Bd8 {[%emt 0:00:50]} 21. Ra4 {[%emt 0:03:50]} (21. b4 $16) 21... Qd6 {[%emt 0:02:50]} (21... a5 $14) 22. Raa1 {[%emt 0:02:13]} Qb6 $1 {[%emt 0:00:47]} 23. h3 {[%emt 0:00:57]} (23. b4 $18) 23... Bd7 $16 {[%emt 0:00:44]} 24. Rad1 {[%emt 0:00:52]} Rc8 {[%emt 0:00:52]} 25. Nf5 {[%emt 0:00:52]} (25. Bf5 $16) 25... Bxf5 $14 {[%emt 0:01:53]} 26. Bxf5 {[%emt 0:01:21]} Rc6 {[%emt 0:00:21]} 27. c4 {[%emt 0:01:29]} Qc5 {[%emt 0:00:53]} (27... Qb4 $14) 28. Bc2 {[%emt 0:03:11]} (28. Be4 $16 Nxe4 29. Bxd8 (29. Rxd8 Rxd8 30. Bxd8 f5 $11) (29. Rxe4 f5 $11) (29. Qxe4 Re6 $11)) 28... Ba5 {[%emt 0:00:51][%cal Bd8a5,Ba5c7,Bc7f4][%mdl 32]} 29. Re3 {[%emt 0:00:53][%cal Be1e3,Be3f3,Bf3f5,Bf5g5][%mdl 32]} Bc7 {[%emt 0:02:04]} 30. Qe2 {[%emt 0:02:44]} Bf4 {[%emt 0:02:02]} (30... g5 $5 31. Bg3 Bxg3 32. Rxg3 Re6 $11) 31. Rf3 {[%emt 0:00:47]} Qe5 {[%emt 0:02:53]} (31... Re8 $11 {remains equal.} 32. Qf1 g5) 32. Qd3 $16 {[%emt 0:01:03]} Re8 {[%emt 0:01:02]} 33. g3 {[%emt 0:01:41]} Bg5 {[%emt 0:00:43]} 34. Rf5 {[%emt 0:00:40]} Qc7 {[%emt 0:00:45]} 35. Bxg5 {[%emt 0:00:55]} hxg5 {[%emt 0:00:01]} 36. Rxg5 {[%emt 0:00:24]} Rce6 {[%emt 0:00:55]} 37. Rf5 {[%emt 0:00:58]} Qc6 {[%emt 0:00:49]} 38. Rf3 {[%emt 0:01:03]} a6 {[%emt 0:00:28]} 39. b4 {[%emt 0:00:37]} Re2 {[%emt 0:01:05][%cal Oe2c2]} 40. Bb1 {[%emt 0:00:00]} Qb6 {[%emt 0:00:00]} 41. Qc3 {[%emt 0:09:33]} Qc6 {[%emt 0:13:27]} 42. Bd3 {[%emt 0:04:34]} R2e5 {[%emt 0:04:22]} (42... Qxf3 $2 43. Bh7+ $1 {[%mdl 512]} Kxh7 44. Qxf3 $18) ({Black should try} 42... Ne4 43. Qd4 Ng5 44. Bxe2 Nxf3+ 45. Bxf3 Qxf3) 43. Kg2 {[%emt 0:01:40]} (43. Rf5 $142 R5e6 44. Rf4) 43... Ne4 {[%emt 0:02:40]} 44. Bxe4 {[%emt 0:00:17]} Rxe4 {[%emt 0:00:02]} 45. Rd4 {[%emt 0:01:17]} (45. c5 $1 $16) 45... Rxd4 $11 {[%emt 0:02:53]} 46. Qxd4 {[%emt 0:00:03][%mdl 4096] Endgame KQR-KQR} Re4 {[%emt 0:00:29]} 47. Qd8+ {[%emt 0:00:47]} Kh7 {[%emt 0:00:18]} 48. Kh2 {[%emt 0:10:58]} f6 {[%emt 0:03:45]} 49. Rc3 {[%emt 0:01:09]} b5 {[%emt 0:02:53]} 50. c5 {[%emt 0:01:19] Black must now prevent Qd3.} Rxb4 {[%emt 0:00:39]} 51. h4 {[%emt 0:02:44]} Re4 {[%emt 0:01:24]} 52. Qd3 {[%emt 0:01:47] Strongly threatening f3.} Kh8 {[%emt 0:00:47]} 53. Rc2 {[%emt 0:01:52]} Re1 {[%emt 0:01:16][%csl Gc6][%cal Re1h1]} 54. Qd8+ {[%emt 0:00:10]} Kh7 {[%emt 0:00:07][%csl Gc6][%cal Re1h1]} 55. Qd3+ {[%emt 0:00:32]} Kg8 {[%emt 0:00:19][%csl Gc6][%cal Re1h1]} 56. f3 {[%emt 0:00:29]} Re5 {[%emt 0:00:36]} 57. Qd8+ {[%emt 0:00:55]} (57. Qa3 $11 {keeps the balance.}) 57... Kf7 $17 {[%emt 0:00:34]} 58. Qd4 {[%emt 0:00:57]} (58. Kg2 $17 {was called for.}) 58... a5 $2 {[%emt 0:01:21]} (58... Qxf3 $19 {And now ...Re1 would win.} 59. Rf2 Re2 60. Rxe2 Qxe2+ 61. Kg1 Qe6) 59. Kg2 {[%emt 0:00:16]} b4 {[%emt 0:00:27] Threatens to win with ...b3.} 60. Qc4+ {[%emt 0:00:04]} Kf8 {[%emt 0:00:31]} 61. Rd2 $2 {[%emt 0:00:53][%mdl 8192]} (61. g4 $1 $11 {and White stays safe.}) 61... Qxc5 {[%emt 0:01:29]} 62. Rd8+ {[%emt 0:00:13]} Ke7 {[%emt 0:00:06]} 63. Qd3 {[%emt 0:00:33][%csl Gd8][%cal Rd3d7] [#]} Qb5 $2 {[%emt 0:01:30] Against Qd7+} ({Worse is} 63... Qc7 64. Rg8 Ke6 65. Qg6 $11) ({Black should play} 63... Re2+ $1 $19 {[%mdl 512]} 64. Qxe2+ (64. Kh3 Qc6) 64... Kxd8) 64. Qd6+ $11 {[%emt 0:00:21]} Kf7 {[%emt 0:00:01]} 65. Rf8+ $2 {[%emt 0:01:03][%mdl 8192]} (65. Qf8+ $11 Kg6 66. g4 Re2+ 67. Kh3) 65... Kg6 $19 {[%emt 0:00:03] ( -> ...Re2+). The board is on fire.} 66. h5+ {[%emt 0:00:41]} Rxh5 {[%emt 0:01:51]} (66... Kh7 $142 67. g4 Re1) 67. Qd2 {[%emt 0:00:16]} Rd5 {[%emt 0:00:36]} (67... b3 $142 68. g4 Re5) 68. Qe3 {[%emt 0:00:10]} Re5 {[%emt 0:00:25]} 69. Qd4 {[%emt 0:00:36]} Re2+ {[%emt 0:00:35]} 70. Kg1 {[%emt 0:00:13]} Re1+ {[%emt 0:00:21]} 71. Kh2 {[%emt 0:00:12]} Re2+ {[%emt 0:00:32]} 72. Kg1 $1 {[%emt 0:00:09]} Re1+ {[%emt 0:00:01]} 73. Kh2 {[%emt 0:00:05]} Qh5+ {[%emt 0:00:19]} 74. Qh4 {[%emt 0:00:13]} Qxf3 {[%emt 0:00:25] Weighted Error Value: White=0.25 (precise) /Black=0.19 (very precise)} 0-1

[Event "Prague Festival-Futures 2022"]
[Site "Prague"]
[Date "2022.06.09"]
[Round "2.1"]
[White "Tolmacevs, Artjoms"]
[Black "Sowinski, Pawel"]
[Result "1/2-1/2"]
[ECO "B12"]
[WhiteElo "2087"]
[BlackElo "2060"]
[Annotator "TA"]
[PlyCount "68"]
[EventDate "2022.06.07"]
[EventType "tourn"]
[EventCountry "CZE"]
[SourceTitle "playchess.com"]
[Source "ChessBase"]
[SourceQuality "1"]
[TimeControl "40/5400+30:1800+30"]

{[%evp 11,68,20,31,24,20,-10,28,26,54,49,86,52,37,0,0,6,31,0,54,56,176,94,107,-11,0,-14,-33,-14,71,85,69,0,0,0,0,-500,-508,-502,-472,-446,-263,-343,-133,-140,-145,-138,0,-304,-298,-285,-271,-437,0,0,0,-381,0,0,0]} 1. e4 {[%emt 0:00:01]} c6 {[%emt 0:00:11]} 2. d4 {[%emt 0:00:04]} d5 {[%emt 0:00:03]} 3. e5 {[%emt 0:00:02]} Bf5 {[%emt 0:00:05]} 4. Nf3 {[%emt 0:00:05]} e6 {[%emt 0:00:04]} 5. Be2 {[%emt 0:00:07]} h6 {[%emt 0:00:03]} 6. O-O {[%emt 0:00:10]} Ne7 {[%emt 0:00:04]} 7. Nbd2 {[%emt 0:00:16] B12: Caro-Kann: Advance Variation.} Nd7 {[%emt 0:00:54]} 8. a4 {[%emt 0:00:07][%cal Ba2a4,Ba4a5,Ba5a6][%mdl 32]} g5 {[%emt 0:01:49] 8...a5 deserves study.} 9. Nb3 {[%emt 0:02:36] White has an edge.} Ng6 {[%emt 0:19:25]} 10. a5 {[%emt 0:02:40]} Qc7 {[%emt 0:04:59] [#]} 11. a6 $146 {[%emt 0:03:25]} ({Predecessor:} 11. c4 dxc4 12. Bxc4 g4 13. Ne1 Be7 14. Nc2 O-O-O 15. Bd2 h5 16. Ne3 Nh4 17. a6 {1-0 (46) Gabrielian,A (2559)-Pakhomov,A (2412) Pardubice 2010}) 11... b6 {[%emt 0:02:26]} 12. c4 {[%emt 0:12:34]} dxc4 {[%emt 0:04:10]} 13. Bxc4 {[%emt 0:00:16]} Rd8 {[%emt 0:08:39][%cal Rd7e5]} 14. Bd2 {[%emt 0:07:06]} g4 {[%emt 0:00:59] Inhibits h3.} (14... c5 $11) 15. Ne1 $14 {[%emt 0:01:41]} f6 {[%emt 0:02:15]} ({Better is} 15... c5 $14) 16. f3 {[%emt 0:22:25]} (16. f4 $18) 16... h5 $16 {[%emt 0:14:25][%cal Bh6h5,Bh5g4][%mdl 32]} 17. fxg4 {[%emt 0:05:17]} ({White should play} 17. f4 $16) 17... hxg4 $11 {[%emt 0:02:11]} 18. Bd3 {[%emt 0:01:14]} Bxd3 {[%emt 0:17:19]} 19. Nxd3 {[%emt 0:00:04] [#]} Ndxe5 {[%emt 0:01:19]} 20. Nxe5 $16 {[%emt 0:01:31]} ({Much weaker is} 20. dxe5 Rxd3 21. Qxg4 Nxe5 22. Qxe6+ Qe7 23. Qxe7+ (23. Rxf6 Bg7 $17) 23... Kxe7 $11) 20... Nxe5 {[%emt 0:00:04]} 21. dxe5 {[%emt 0:01:15]} ({White should try} 21. Bf4 $14) 21... Qxe5 $11 {[%emt 0:00:02]} 22. Qxg4 {[%emt 0:12:55]} Rxd2 $1 $40 {[%emt 0:10:56][%csl Gh8][%cal Re5h2][%mdl 128] Black attacks.} 23. h3 {[%emt 0:13:04][%mdl 8192]} (23. Qg6+ $11 Kd8 24. Nxd2 Bc5+ 25. Rf2 Qxh2+ 26. Kf1) 23... Qe3+ $19 {[%emt 0:05:21]} 24. Kh1 {[%emt 0:00:13]} Qxb3 {[%emt 0:00:24]} 25. Rxf6 {[%emt 0:02:12]} Rd6 {[%emt 0:03:24]} (25... Bd6 $142 26. Rxe6+ Kd8) 26. Re1 {[%emt 0:04:50][%cal Rf6e6]} Be7 $2 {[%emt 0:00:46]} (26... Qxb2 {gets mated.} 27. Rfxe6+ Rxe6 28. Qxe6+ Kd8 29. Rd1+) (26... Kd8 $19 {is more deadly. ...Qd5 is the strong threat.} 27. Rf7 Rd3 28. Rxa7 Qd5 29. Ra8+ Kd7 30. Ra7+ Kd8 31. Ra8+ Kc7 32. Qf4+ e5 33. Rxe5 Rhxh3+ 34. Kg1 Rd1+ 35. Kf2 Qd2+ 36. Qxd2 Rxd2+ 37. Ke1 Bb4 $1 38. gxh3 Rd8+ 39. Ke2 Rxa8) 27. Rfxe6 $17 {[%emt 0:00:22]} Rxe6 {[%emt 0:00:01]} 28. Rxe6 {[%emt 0:00:01] [#]} Qxb2 {[%emt 0:01:14]} (28... Rf8 $1 $17 {Threatens to win with ...Qd3.} 29. Rxc6 Qd5 30. Rc8+ Bd8 31. Qg6+ Kd7 32. Qg4+ Qf5) 29. Rxc6 $2 {[%emt 0:04:59][%mdl 8192]} (29. Qg6+ $11 {and White is okay.} Kd7 30. Qg4) 29... Qa1+ $19 {[%emt 0:00:07]} 30. Kh2 {[%emt 0:00:11] White wants to mate with Qc8+.} Qe5+ {[%emt 0:00:05]} ({Resist} 30... Qxa6 31. Rc8+ Qxc8 32. Qxc8+ Bd8 33. Qe6+ Kf8 34. Qd7 $18) 31. Kh1 $2 {[%emt 0:00:05]} (31. g3) 31... Qa1+ {[%emt 0:00:02]} 32. Kh2 {[%emt 0:00:12] White threatens Qc8+ and mate.} Qe5+ {[%emt 0:01:29]} (32... Qxa6 $2 33. Rc8+ Qxc8 34. Qxc8+ Bd8 35. Qe6+ Kf8 36. Qd7 $18) 33. Kh1 $1 {[%emt 0:00:06]} Qe1+ {[%emt 0:00:32]} (33... Rf8 $19 {[%cal Rf8f1]} 34. Qc8+ Kf7) 34. Kh2 $11 {[%emt 0:00:15] aiming for Qc8+.} Qe5+ {[%emt 0:00:01] Weighted Error Value: White=0.77/Black=0.80} 1/2-1/2

[Event "Prague Festival-Futures 2022"]
[Site "Prague"]
[Date "2022.06.09"]
[Round "2.2"]
[White "Warchol, Kamil"]
[Black "Kovalskyi, Roman"]
[Result "1/2-1/2"]
[ECO "B27"]
[WhiteElo "2079"]
[BlackElo "2039"]
[Annotator "TA"]
[PlyCount "59"]
[EventDate "2022.06.07"]
[EventType "tourn"]
[EventCountry "CZE"]
[SourceTitle "playchess.com"]
[Source "ChessBase"]
[SourceQuality "1"]
[TimeControl "40/5400+30:1800+30"]

{[%evp 11,59,20,37,38,32,31,45,51,60,47,60,70,77,72,56,59,53,36,38,0,33,32,39,0,41,35,46,-40,-26,-35,0,-10,0,-62,-13,-31,0,-17,-15,-27,-36,-79,-54,-210,67,50,58,61,67,0]} 1. e4 {[%emt 0:00:30]} c5 {[%emt 0:00:30]} 2. Nf3 {[%emt 0:00:30]} g6 {[%emt 0:00:30]} 3. c3 {[%emt 0:00:30]} Bg7 {[%emt 0:00:30]} 4. d4 {[%emt 0:00:02]} cxd4 {[%emt 0:00:00]} 5. cxd4 {[%emt 0:00:00]} d5 {[%emt 0:00:00]} 6. e5 {[%emt 0:00:00]} Nc6 {[%emt 0:00:14]} 7. Bb5 $1 {[%emt 0:02:43][%mdl 4] is currently scoring better than 7.Nc3. B27: Sicilian: 2 Nf3, unusual Black 2nd moves.} Nh6 {[%emt 0:04:25]} 8. h3 {[%emt 0:01:22]} O-O {[%emt 0:05:12]} 9. Nc3 {[%emt 0:00:18] has lost popularity (9.0-0).} Nf5 {[%emt 0:04:27][%cal Oc6e5]} 10. Bf4 {[%emt 0:09:08] [#]} e6 $146 {[%emt 0:05:11]} ({Predecessor:} 10... f6 11. O-O e6 12. Bxc6 bxc6 13. exf6 Bxf6 14. Re1 Qa5 15. Be5 Bxe5 16. Rxe5 c5 17. dxc5 Qxc5 {1-0 (57) Plenca,J (2431)-Ghersinich,E (2029) Sv Filip i Jakov 2017}) 11. Bxc6 {[%emt 0:13:03]} bxc6 {[%emt 0:02:08]} 12. O-O {[%emt 0:00:26]} c5 {[%emt 0:23:07]} 13. dxc5 {[%emt 0:16:12]} Qa5 {[%emt 0:01:18]} 14. Qd2 {[%emt 0:08:31]} (14. Rc1 $5 {[%cal Rd1d2]}) 14... Qxc5 {[%emt 0:03:30]} 15. Rfd1 {[%emt 0:10:26]} Bd7 {[%emt 0:05:15]} (15... Bb7 $5 {[%cal Rd5d4]}) 16. Rac1 {[%emt 0:01:24] And now g4 would win.} Qb6 {[%emt 0:01:07]} 17. Bg5 {[%emt 0:11:29] Threatens to win with g4.} Rfe8 {[%emt 0:04:22]} 18. g4 {[%emt 0:07:34]} Ne7 {[%emt 0:01:15]} 19. h4 {[%emt 0:00:10]} (19. Bh6 $14) 19... Qb4 $15 {[%emt 0:04:37]} 20. Bf4 {[%emt 0:02:25][%cal Rc3d5]} Nc6 {[%emt 0:06:01]} 21. a3 {[%emt 0:01:36]} Qb3 {[%emt 0:02:49]} 22. h5 {[%emt 0:02:51]} ({White should play} 22. Qe3 $11) 22... Rab8 {[%emt 0:01:16]} (22... Rec8 $15 {deserves consideration.}) 23. Rb1 $11 {[%emt 0:02:39]} Qc4 {[%emt 0:13:55][%cal Oh7h6]} 24. b4 {[%emt 0:01:15]} g5 {[%emt 0:03:58]} 25. Nxg5 {[%emt 0:02:20][%cal Oc3e4]} Nxe5 {[%emt 0:03:25] Hoping for ...h6.} 26. Rbc1 {[%emt 0:04:29][%cal Rc3d5] aiming for Nxd5!} h6 $1 {[%emt 0:00:48] White must now prevent ...Rbc8.} (26... Nxg4 $2 27. Bxb8 Rxb8 28. Nxd5 $1 {[%mdl 512]} (28. Qc2 $2 Qf4 $19) 28... Qxd5 29. Qf4 $18) 27. Bxe5 $2 {[%emt 0:00:39]} (27. Nce4 $1 $15 hxg5 28. Nxg5 (28. Bxe5 $2 Qxe4 29. Bxb8 Rxb8 $19)) 27... Bxe5 $2 {[%emt 0:03:24] [#]} (27... Qxg4+ $19 28. Bg3 hxg5) 28. Nce4 $1 $14 {[%emt 0:00:19] Chess con chili. White is slightly better.} Qa6 {[%emt 0:00:44]} 29. Nc5 $1 {[%emt 0:00:29][%csl LRa6,LRd7] Pair of Knights!} Qd6 {[%emt 0:00:03] [#]} 30. Nh3 {[%emt 0:00:42] Weighted Error Value: White=0.29 (precise) /Black=0.23 (precise)} (30. Nge4 $1 $14 Qe7 31. Nxd7 (31. Qxh6 Bb5 $11) 31... Qxd7 32. Qxh6) 1/2-1/2

[Event "Prague Festival-Futures 2022"]
[Site "Prague"]
[Date "2022.06.09"]
[Round "2.3"]
[White "Peglau, Charis"]
[Black "Bouska, Jiri"]
[Result "0-1"]
[ECO "B07"]
[WhiteElo "2008"]
[BlackElo "2117"]
[Annotator "TA"]
[PlyCount "162"]
[EventDate "2022.06.07"]
[EventType "tourn"]
[EventCountry "CZE"]
[SourceTitle "playchess.com"]
[Source "ChessBase"]
[SourceQuality "1"]
[TimeControl "40/5400+30:1800+30"]

{[%evp 10,162,21,13,15,0,-7,0,55,39,41,40,34,5,22,21,29,9,28,0,0,0,0,0,0,0,37,0,0,0,0,9,4,0,0,0,0,0,0,0,0,0,0,0,0,0,0,-25,-29,-24,-22,-44,0,-23,-35,-92,-94,-77,-49,-79,-59,-61,-13,-65,0,0,0,-547,-211,-183,-550,-568,-593,-493,-418,-793,-793,-789,-611,-1382,-1308,-681,-191,-1177,-520,-4134,-4203,-4134,-3689,-3703,-3222,-2146,-2054,-1622,-1450,-29959,-29961,-29959,-29958,-29950,-5829,-2362,-1529,-29973,-29975,-29974,-29975,-29976,-860,-760,-729,-714,-714,-714,-650,-29975,-834,-29977,-29977,-29977,-29978,-29978,-29979,-29979,-29980,-29980,-29980,-29982,-29983,-29982,-29983,-29983,-29984,-29984,-29985,-29985,-29986,-29987,-29988,-29990,-29986,-29986,-29987,-29988,-29989,-29989,-29989,-29990,-29991,-29991,-29992,-29992,-29993,-29998,-29994]} 1. d4 {[%emt 0:00:05]} Nf6 {[%emt 0:00:03]} 2. Nf3 {[%emt 0:00:02]} g6 {[%emt 0:00:08]} 3. Nbd2 {[%emt 0:00:06]} Bg7 {[%emt 0:00:42]} 4. e4 {[%emt 0:00:07]} d6 {[%emt 0:00:00]} 5. c3 {[%emt 0:00:00]} O-O {[%emt 0:00:09]} 6. Bd3 {[%emt 0:00:19]} Nc6 {[%emt 0:03:40] B07: Pirc Defence: Miscellaneous Systems.} 7. d5 {[%emt 0:05:27]} Nb8 {[%emt 0:00:26]} 8. O-O {[%emt 0:00:18] [#]} c5 $146 {[%emt 0:00:26]} (8... c6 $11) ({Predecessor:} 8... c6 9. dxc6 Nxc6 10. Re1 Qc7 11. h3 b6 12. Nf1 Bb7 13. Bg5 Rad8 14. Qe2 {½-½ (14) Voiska,M (2224)-Mrdja,M (2260) Cattolica 2021}) 9. Rb1 {[%emt 0:02:17]} e6 {[%emt 0:10:16]} 10. c4 {[%emt 0:02:02]} exd5 {[%emt 0:02:15]} 11. exd5 {[%emt 0:00:19]} Nbd7 {[%emt 0:11:22]} 12. b3 {[%emt 0:03:46]} Ng4 {[%emt 0:01:58]} 13. Bb2 {[%emt 0:04:45]} Nge5 {[%emt 0:03:01]} 14. Bc2 {[%emt 0:04:45]} Nxf3+ {[%emt 0:03:27]} 15. Nxf3 {[%emt 0:00:18]} Bxb2 {[%emt 0:03:31]} 16. Rxb2 {[%emt 0:00:08]} Qf6 {[%emt 0:10:49]} 17. Rb1 {[%emt 0:00:36]} b5 {[%emt 0:04:14]} 18. Bd3 {[%emt 0:02:48]} bxc4 {[%emt 0:00:19]} 19. bxc4 {[%emt 0:00:33]} Nb6 {[%emt 0:05:15]} 20. Qc2 {[%emt 0:01:29]} Bd7 {[%emt 0:06:37]} 21. Rfe1 {[%emt 0:04:04]} Rfe8 {[%emt 0:00:33]} 22. Nd2 {[%emt 0:02:45]} Ba4 {[%emt 0:04:00]} 23. Qc1 {[%emt 0:03:22]} Qd4 {[%emt 0:01:08]} 24. Rxe8+ {[%emt 0:02:40]} Rxe8 {[%emt 0:00:08]} 25. Bf1 {[%emt 0:00:18]} Bd7 {[%emt 0:10:19]} 26. Nf3 {[%emt 0:02:50]} Qf6 {[%emt 0:00:47]} 27. Rb3 {[%emt 0:06:55]} Bf5 {[%emt 0:01:37]} 28. Re3 {[%emt 0:04:59]} Rxe3 {[%emt 0:01:34]} 29. Qxe3 {[%emt 0:00:07]} Qa1 {[%emt 0:00:59]} 30. Ng5 {[%emt 0:05:26]} Qf6 {[%emt 0:01:39]} (30... Kg7 {with more complications.} 31. Qe8 Qf6 32. h4 h6) 31. Nf3 {[%emt 0:02:23]} Kg7 {[%emt 0:00:34]} 32. a3 {[%emt 0:00:53]} ({White should try} 32. h3 $15) 32... Qa1 $17 {[%emt 0:00:42] And now ...Nxc4 would win.} 33. Nd2 {[%emt 0:01:22]} Nd7 {[%emt 0:03:30]} 34. Nf3 {[%emt 0:04:03]} a5 {[%emt 0:03:07]} 35. h3 {[%emt 0:12:05]} Nf6 {[%emt 0:05:03]} (35... h6 $15 {is more appropriate.}) 36. Nd2 {[%emt 0:09:37]} (36. g4 $11 Bc2 37. Ne1) 36... Qc1 {[%emt 0:01:13] Black is more active.} ({Black should play} 36... h5 $15) 37. g4 $1 $11 {[%emt 0:03:19]} Ne4 {[%emt 0:00:58]} 38. Nxe4 {[%emt 0:01:35][%mdl 8192] Black converts the advantage convincingly.} (38. Nb3 $11 Qxe3 39. fxe3) 38... Qxe3 $19 {[%emt 0:00:02][%mdl 64] Remove Defender} 39. fxe3 {[%emt 0:00:07]} Bxe4 $11 {[%emt 0:00:04][%mdl 4096] Endgame KB-KB} 40. Kf2 {[%emt 0:00:00]} g5 {[%emt 0:00:00]} 41. Kg3 {[%emt 0:06:20]} Kf6 {[%emt 0:03:36]} 42. h4 {[%emt 0:08:23]} (42. Kf2 $142 Bg6 43. Be2) 42... h6 $19 {[%emt 0:01:33][%cal Bh7h6,Bh6g5][%mdl 32]} 43. Be2 {[%emt 0:02:44]} Ke5 {[%emt 0:01:16]} 44. hxg5 {[%emt 0:00:58]} hxg5 {[%emt 0:00:02]} 45. Kf2 {[%emt 0:01:56]} f5 $2 {[%emt 0:01:38]} (45... Bb1 {Strongly threatening ...Ke4.} 46. Ke1 Ke4) 46. gxf5 $2 {[%emt 0:01:13]} (46. Kg3) 46... Bxf5 {[%emt 0:00:11] aiming for ...Ke4.} 47. Kf3 {[%emt 0:01:17]} (47. Bf1 $142 Ke4 48. Ke2) 47... g4+ {[%emt 0:05:35]} 48. Kg3 {[%emt 0:00:07]} Ke4 {[%emt 0:00:43]} 49. Bxg4 {[%emt 0:02:19]} Bg6 $1 {[%emt 0:08:45]} 50. Kf2 {[%emt 0:04:07] [#]} Kd3 $1 {[%emt 0:00:05]} 51. Be2+ {[%emt 0:00:43]} Kc3 {[%emt 0:00:08]} 52. Kg3 {[%emt 0:03:11]} Kb3 {[%emt 0:01:19]} 53. Kf4 {[%emt 0:00:22]} Kxa3 {[%emt 0:00:12]} 54. e4 {[%emt 0:01:31]} Kb4 {[%emt 0:00:53]} 55. e5 {[%emt 0:10:09]} dxe5+ {[%emt 0:00:02]} 56. Kxe5 {[%emt 0:00:06]} a4 {[%emt 0:00:51]} 57. d6 {[%emt 0:01:23]} Be8 {[%emt 0:00:05]} 58. Bd3 {[%emt 0:00:23]} Kc3 {[%emt 0:00:13]} (58... a3 $142 59. Bb1 Kb3 60. Kf6 Kb2 61. Ke7 Ba4 62. d7 Bxd7 63. Be4 a2 64. Kxd7 a1=Q 65. Kd6 Kc3 66. Bd5 Kb4 67. Ke7 Qd4 68. Kd6 Qxc4 69. Bxc4 Kxc4 70. Kc6 Kd4 71. Kb5 c4 72. Kb4 c3 73. Kb3 Kd3 74. Kb4 c2 75. Kc5 c1=Q+ 76. Kd5 Qf4 77. Ke6 Kc4 78. Kd7 Kd5 79. Ke7 Qg5+ 80. Ke8 Qg7 81. Kd8 Kd6 82. Ke8 Qg8#) 59. Bg6 {[%emt 0:00:12]} Bd7 {[%emt 0:02:01]} ({Not} 59... Bxg6 60. d7 Kxc4 61. d8=Q $18) 60. Bf5 {[%emt 0:00:32] [#]} a3 $1 {[%emt 0:00:06] ( -> ...Ba4)} 61. Bxd7 {[%emt 0:01:00] KB-KPP} a2 {[%emt 0:00:06]} 62. Ba4 {[%emt 0:01:56]} a1=Q {[%emt 0:00:10]} (62... Kxc4 $142 63. Ke6 a1=Q 64. d7 Qh8 65. Ke7 Qe5+ 66. Kd8 Kb4 67. Bc6 Qd6 68. Bh1 Qb8+ 69. Ke7 Qe5+ 70. Kd8 Qh8+ 71. Kc7 Qh2+ 72. Kc8 Qxh1 73. Kb8 Qh8+ 74. Kc7 Qf8 75. d8=Q Qxd8+ 76. Kxd8 c4 77. Ke8 c3 78. Kf7 c2 79. Kg6 c1=Q 80. Kf5 Qe3 81. Kg4 Kc5 82. Kf5 Kd6 83. Kf6 Qf4+ 84. Kg7 Ke7 85. Kg8 Qg4+ 86. Kh8 Kf8 87. Kh7 Qh5#) 63. d7 {[%emt 0:00:06]} Kxc4+ {[%emt 0:00:41] Black mates.} 64. Ke6 {[%emt 0:00:35]} Qd4 {[%emt 0:00:25]} 65. Ke7 {[%emt 0:00:20]} Qe5+ {[%emt 0:00:06]} 66. Kf8 {[%emt 0:01:00]} Qf6+ {[%emt 0:00:11]} 67. Ke8 {[%emt 0:00:05]} Kb4 {[%emt 0:00:14]} 68. Bd1 {[%emt 0:01:22]} Qe6+ {[%emt 0:00:08]} 69. Kd8 {[%emt 0:00:13]} c4 {[%emt 0:00:30][%cal Bc5c4,Bc4c3][%mdl 32]} 70. Kc7 {[%emt 0:00:23]} Qe7 {[%emt 0:00:17]} 71. Kc8 {[%emt 0:00:23]} Qc5+ {[%emt 0:00:05]} 72. Kd8 {[%emt 0:00:13]} c3 {[%emt 0:00:08]} 73. Ke8 {[%emt 0:00:14]} Qe5+ {[%emt 0:00:08]} 74. Kd8 {[%emt 0:00:14]} Ka5 {[%emt 0:00:34]} 75. Kc8 {[%emt 0:00:31]} Qc5+ {[%emt 0:00:05]} 76. Kd8 {[%emt 0:00:14]} Kb6 {[%emt 0:00:16][%cal Rc5f8]} 77. Ke8 {[%emt 0:00:25]} Qe5+ {[%emt 0:00:07]} 78. Kd8 {[%emt 0:00:30]} Kc6 {[%emt 0:00:20]} 79. Ba4+ {[%emt 0:00:33]} Kd6 {[%emt 0:00:06][%cal Re5h8]} 80. Kc8 {[%emt 0:00:15]} Qc5+ {[%emt 0:00:12]} 81. Kd8 {[%emt 0:00:22]} Qa5+ {[%emt 0:00:15] Weighted Error Value: White=0.82/Black=0.31} 0-1